[Event "Titled Tuesday Blitz November 08 Late 2022"]
[White "Hansen, Eric"]
[Black "Pakleza, Zbigniew"]
[WhiteFideId "2606771"]
[BlackFideId "1119290"]
[WhiteElo "2568"]
[BlackElo "2411"]
[Result "1-0"]
[Round "06"]
[TimeControl "180+1"]
[Date "2022.11.09"]
[WhiteClock "0:00:18"]
[BlackClock "0:00:02"]

1. d4 {[%clk 0:02:04]}  d5 {[%clk 0:02:58]} 2. c4 {[%clk 0:02:04]}  c6 {[%clk 0:02:58]} 3. Nc3 {[%clk 0:02:05]}  Nf6 {[%clk 0:02:59]} 4. e3 {[%clk 0:02:06]}  Qb6 {[%clk 0:02:58]} 5. Nge2 {[%clk 0:02:04]}  Bf5 {[%clk 0:02:58]} 6. Ng3 {[%clk 0:01:57]}  Bg6 {[%clk 0:02:58]} 7. h4 {[%clk 0:01:57]}  h6 {[%clk 0:02:57]} 8. h5 {[%clk 0:01:56]}  Bh7 {[%clk 0:02:57]} 9. Bd3 {[%clk 0:01:56]}  Bxd3 {[%clk 0:02:57]} 10. Qxd3 {[%clk 0:01:57]}  e6 {[%clk 0:02:58]} 11. O-O {[%clk 0:01:57]}  Nbd7 {[%clk 0:02:58]} 12. e4 {[%clk 0:01:57]}  Qa6 {[%clk 0:02:32]} 13. b3 {[%clk 0:01:57]}  Nb6 {[%clk 0:02:21]} 14. exd5 {[%clk 0:01:57]}  cxd5 {[%clk 0:02:07]} 15. Nb5 {[%clk 0:01:57]}  Rc8 {[%clk 0:02:07]} 16. c5 {[%clk 0:01:53]}  Na8 {[%clk 0:01:40]} 17. Bf4 {[%clk 0:01:52]}  Be7 {[%clk 0:01:37]} 18. Bd6 {[%clk 0:01:46]}  Rc6 {[%clk 0:01:28]} 19. Bxe7 {[%clk 0:01:30]}  Kxe7 {[%clk 0:01:28]} 20. a4 {[%clk 0:01:30]}  Qa5 {[%clk 0:01:18]} 21. b4 {[%clk 0:01:30]}  Qxb4 {[%clk 0:01:15]} 22. Nxa7 {[%clk 0:01:30]}  Rc7 {[%clk 0:01:15]} 23. Rfb1 {[%clk 0:01:25]}  Qc4 {[%clk 0:01:05]} 24. Qe3 {[%clk 0:01:25]}  Rb8 {[%clk 0:00:52]} 25. Nb5 {[%clk 0:01:09]}  Rc6 {[%clk 0:00:42]} 26. Qf4 {[%clk 0:01:05]}  Nd7 {[%clk 0:00:32]} 27. Nd6 {[%clk 0:00:59]}  Rxd6 {[%clk 0:00:32]} 28. Qxd6+ {[%clk 0:00:54]}  Kd8 {[%clk 0:00:33]} 29. a5 {[%clk 0:00:44]}  Nc7 {[%clk 0:00:28]} 30. a6 {[%clk 0:00:41]}  Nxa6 {[%clk 0:00:25]} 31. Rc1 {[%clk 0:00:23]}  Qb5 {[%clk 0:00:03]} 32. c6 {[%clk 0:00:19]}  bxc6 {[%clk 0:00:04]} 33. Rxc6 {[%clk 0:00:19]}  Rb7 {[%clk 0:00:02]} 34. Rcxa6 {[%clk 0:00:18]} 1-0


[Site "https://www.chess.com"]

[Event "Titled Tuesday Blitz November 08 Late 2022"]
[White "Harvey, Marcus R"]
[Black "Swiercz, Dariusz"]
[WhiteFideId "400092"]
[BlackFideId "1126881"]
[WhiteElo "2457"]
[BlackElo "2627"]
[Result "0-1"]
[Round "06"]
[TimeControl "180+1"]
[Date "2022.11.08"]
[WhiteClock "0:00:25"]
[BlackClock "0:00:19"]

1. Nf3 {[%clk 0:03:00]}  Nf6 {[%clk 0:02:56]} 2. b3 {[%clk 0:03:01]}  g6 {[%clk 0:02:55]} 3. Bb2 {[%clk 0:03:01]}  Bg7 {[%clk 0:02:56]} 4. g3 {[%clk 0:03:02]}  O-O {[%clk 0:02:56]} 5. Bg2 {[%clk 0:03:03]}  d5 {[%clk 0:02:55]} 6. c4 {[%clk 0:03:03]}  c6 {[%clk 0:02:55]} 7. O-O {[%clk 0:03:03]}  Bg4 {[%clk 0:02:55]} 8. d3 {[%clk 0:03:03]}  Bxf3 {[%clk 0:02:55]} 9. Bxf3 {[%clk 0:03:03]}  e6 {[%clk 0:02:56]} 10. Nc3 {[%clk 0:03:00]}  Nbd7 {[%clk 0:02:56]} 11. Rc1 {[%clk 0:02:59]}  Re8 {[%clk 0:02:55]} 12. Bg2 {[%clk 0:02:59]}  a6 {[%clk 0:02:54]} 13. Qd2 {[%clk 0:02:58]}  Qe7 {[%clk 0:02:52]} 14. e3 {[%clk 0:02:52]}  Rad8 {[%clk 0:02:52]} 15. Qe2 {[%clk 0:02:49]}  h5 {[%clk 0:02:52]} 16. Rfd1 {[%clk 0:02:47]}  Ne5 {[%clk 0:02:38]} 17. d4 {[%clk 0:02:46]}  Ned7 {[%clk 0:02:39]} 18. Rc2 {[%clk 0:02:42]}  Rb8 {[%clk 0:02:24]} 19. Rcd2 {[%clk 0:02:40]}  Red8 {[%clk 0:02:23]} 20. e4 {[%clk 0:02:39]}  dxe4 {[%clk 0:02:23]} 21. Nxe4 {[%clk 0:02:40]}  Nxe4 {[%clk 0:02:24]} 22. Qxe4 {[%clk 0:02:38]}  Re8 {[%clk 0:02:18]} 23. d5 {[%clk 0:02:29]}  Bxb2 {[%clk 0:02:11]} 24. Rxb2 {[%clk 0:02:10]}  Nf6 {[%clk 0:01:13]} 25. Qf4 {[%clk 0:02:01]}  exd5 {[%clk 0:01:12]} 26. cxd5 {[%clk 0:02:01]}  cxd5 {[%clk 0:01:09]} 27. Rbd2 {[%clk 0:02:00]}  Qe5 {[%clk 0:00:41]} 28. Qxe5 {[%clk 0:01:56]}  Rxe5 {[%clk 0:00:42]} 29. Bxd5 {[%clk 0:01:55]}  Nxd5 {[%clk 0:00:41]} 30. Rxd5 {[%clk 0:01:56]}  Rbe8 {[%clk 0:00:42]} 31. Rxe5 {[%clk 0:01:50]}  Rxe5 {[%clk 0:00:43]} 32. Rd7 {[%clk 0:01:50]}  Rb5 {[%clk 0:00:42]} 33. Kg2 {[%clk 0:01:44]}  Kg7 {[%clk 0:00:40]} 34. f4 {[%clk 0:01:42]}  a5 {[%clk 0:00:40]} 35. Kf3 {[%clk 0:01:38]}  Rb4 {[%clk 0:00:39]} 36. Rd3 {[%clk 0:01:25]}  Kf6 {[%clk 0:00:37]} 37. a3 {[%clk 0:01:21]}  Rb6 {[%clk 0:00:31]} 38. Ke4 {[%clk 0:01:21]}  Re6+ {[%clk 0:00:25]} 39. Kf3 {[%clk 0:01:20]}  b6 {[%clk 0:00:24]} 40. Rd5 {[%clk 0:01:17]}  Rc6 {[%clk 0:00:23]} 41. Rb5 {[%clk 0:01:16]}  Ke6 {[%clk 0:00:21]} 42. f5+ {[%clk 0:01:09]}  gxf5 {[%clk 0:00:18]} 43. Kf4 {[%clk 0:01:10]}  f6 {[%clk 0:00:18]} 44. a4 {[%clk 0:01:06]}  Rd6 {[%clk 0:00:18]} 45. Rxf5 {[%clk 0:00:52]}  Rd4+ {[%clk 0:00:18]} 46. Ke3 {[%clk 0:00:52]}  Kxf5 {[%clk 0:00:19]} 47. Kxd4 {[%clk 0:00:52]}  Kg4 {[%clk 0:00:20]} 48. b4 {[%clk 0:00:22]}  Kh3 {[%clk 0:00:16]} 49. Kc4 {[%clk 0:00:22]}  Kxh2 {[%clk 0:00:15]} 50. bxa5 {[%clk 0:00:21]}  bxa5 {[%clk 0:00:15]} 51. Kb5 {[%clk 0:00:21]}  Kxg3 {[%clk 0:00:16]} 52. Kxa5 {[%clk 0:00:22]}  h4 {[%clk 0:00:17]} 53. Kb6 {[%clk 0:00:23]}  h3 {[%clk 0:00:17]} 54. a5 {[%clk 0:00:23]}  h2 {[%clk 0:00:18]} 55. a6 {[%clk 0:00:24]}  h1=Q {[%clk 0:00:19]} 56. a7 {[%clk 0:00:25]}  Qa8 {[%clk 0:00:19]} 0-1


[Site "https://www.chess.com"]

[Event "Titled Tuesday Blitz November 08 Late 2022"]
[White "Holt, Conrad"]
[Black "Kavutskiy, Konstantin"]
[WhiteFideId "2034387"]
[BlackFideId "2026384"]
[WhiteElo "2592"]
[BlackElo "2338"]
[Result "1-0"]
[Round "06"]
[TimeControl "180+1"]
[Date "2022.11.08"]
[WhiteClock "0:02:28"]
[BlackClock "0:01:45"]

1. d4 {[%clk 0:03:00]}  Nf6 {[%clk 0:03:00]} 2. c4 {[%clk 0:03:01]}  g6 {[%clk 0:03:00]} 3. Nc3 {[%clk 0:03:01]}  Bg7 {[%clk 0:03:00]} 4. e4 {[%clk 0:03:01]}  d6 {[%clk 0:03:01]} 5. Nf3 {[%clk 0:03:02]}  O-O {[%clk 0:03:01]} 6. h3 {[%clk 0:03:02]}  e5 {[%clk 0:03:01]} 7. dxe5 {[%clk 0:03:02]}  dxe5 {[%clk 0:03:00]} 8. Qxd8 {[%clk 0:03:03]}  Rxd8 {[%clk 0:03:00]} 9. Bg5 {[%clk 0:03:04]}  Re8 {[%clk 0:02:45]} 10. Nd5 {[%clk 0:03:04]}  Nxd5 {[%clk 0:02:44]} 11. cxd5 {[%clk 0:03:05]}  c6 {[%clk 0:02:44]} 12. Bc4 {[%clk 0:03:05]}  b5 {[%clk 0:02:39]} 13. Bb3 {[%clk 0:03:04]}  a5 {[%clk 0:02:39]} 14. a3 {[%clk 0:02:58]}  a4 {[%clk 0:02:36]} 15. Ba2 {[%clk 0:02:57]}  Bb7 {[%clk 0:02:34]} 16. Rc1 {[%clk 0:02:56]}  Rc8 {[%clk 0:02:22]} 17. Be3 {[%clk 0:02:53]}  Na6 {[%clk 0:02:14]} 18. dxc6 {[%clk 0:02:44]}  Rxc6 {[%clk 0:02:09]} 19. O-O {[%clk 0:02:41]}  Rxc1 {[%clk 0:02:06]} 20. Rxc1 {[%clk 0:02:40]}  Rc8 {[%clk 0:02:02]} 21. Rxc8+ {[%clk 0:02:38]}  Bxc8 {[%clk 0:02:03]} 22. Ng5 {[%clk 0:02:38]}  b4 {[%clk 0:01:52]} 23. axb4 {[%clk 0:02:30]}  Nxb4 {[%clk 0:01:49]} 24. Bxf7+ {[%clk 0:02:29]}  Kf8 {[%clk 0:01:45]} 25. Bc5# {[%clk 0:02:28]} 1-0


[Site "https://www.chess.com"]

[Event "Titled Tuesday Blitz November 08 Late 2022"]
[White "Hryzlova, Sofiia"]
[Black "Rasulov, Vugar"]
[WhiteFideId "14174669"]
[BlackFideId "13402390"]
[WhiteElo "1992"]
[BlackElo "2509"]
[Result "0-1"]
[Round "06"]
[TimeControl "180+1"]
[Date "2022.11.08"]
[WhiteClock "0:01:25"]
[BlackClock "0:01:43"]

1. Nf3 {[%clk 0:02:59]}  d5 {[%clk 0:02:59]} 2. g3 {[%clk 0:02:59]}  Nc6 {[%clk 0:02:59]} 3. Bg2 {[%clk 0:02:59]}  e5 {[%clk 0:02:59]} 4. d3 {[%clk 0:02:59]}  f6 {[%clk 0:02:58]} 5. O-O {[%clk 0:02:59]}  Be6 {[%clk 0:02:59]} 6. Nbd2 {[%clk 0:02:58]}  Qd7 {[%clk 0:02:59]} 7. e4 {[%clk 0:02:58]}  d4 {[%clk 0:02:59]} 8. a4 {[%clk 0:02:54]}  Bh3 {[%clk 0:02:58]} 9. Nh4 {[%clk 0:02:48]}  Bxg2 {[%clk 0:02:58]} 10. Nxg2 {[%clk 0:02:48]}  h5 {[%clk 0:02:57]} 11. f4 {[%clk 0:02:47]}  O-O-O {[%clk 0:02:55]} 12. b3 {[%clk 0:02:44]}  h4 {[%clk 0:02:53]} 13. fxe5 {[%clk 0:02:37]}  hxg3 {[%clk 0:02:52]} 14. hxg3 {[%clk 0:02:36]}  Nxe5 {[%clk 0:02:47]} 15. Nf3 {[%clk 0:02:33]}  Qh3 {[%clk 0:02:47]} 16. Nxe5 {[%clk 0:02:28]}  fxe5 {[%clk 0:02:48]} 17. Qf3 {[%clk 0:02:23]}  Nf6 {[%clk 0:02:41]} 18. Bg5 {[%clk 0:02:23]}  Be7 {[%clk 0:02:38]} 19. Qf5+ {[%clk 0:02:12]}  Qxf5 {[%clk 0:02:37]} 20. Rxf5 {[%clk 0:02:13]}  Bd6 {[%clk 0:02:20]} 21. Bxf6 {[%clk 0:02:04]}  gxf6 {[%clk 0:02:21]} 22. Nh4 {[%clk 0:02:02]}  Rdg8 {[%clk 0:02:16]} 23. Kf2 {[%clk 0:02:02]}  Bb4 {[%clk 0:02:15]} 24. Rf1 {[%clk 0:01:59]}  Bd2 {[%clk 0:02:14]} 25. Rxf6 {[%clk 0:01:55]}  Be3+ {[%clk 0:02:14]} 26. Kg2 {[%clk 0:01:48]}  Bg5 {[%clk 0:02:10]} 27. Rg6 {[%clk 0:01:40]}  Bxh4 {[%clk 0:02:07]} 28. Rxg8+ {[%clk 0:01:38]}  Rxg8 {[%clk 0:02:08]} 29. Rf3 {[%clk 0:01:37]}  Kd7 {[%clk 0:02:07]} 30. Kh3 {[%clk 0:01:37]}  Be7 {[%clk 0:02:07]} 31. Rf5 {[%clk 0:01:36]}  Ke6 {[%clk 0:02:07]} 32. g4 {[%clk 0:01:36]}  Bf6 {[%clk 0:02:06]} 33. Kg3 {[%clk 0:01:36]}  c5 {[%clk 0:02:06]} 34. Rh5 {[%clk 0:01:34]}  Rh8 {[%clk 0:02:04]} 35. Rxh8 {[%clk 0:01:31]}  Bxh8 {[%clk 0:02:05]} 36. Kh4 {[%clk 0:01:32]}  a6 {[%clk 0:01:54]} 37. Kh5 {[%clk 0:01:30]}  Kf7 {[%clk 0:01:50]} 38. Kg5 {[%clk 0:01:28]}  Bg7 {[%clk 0:01:49]} 39. Kf5 {[%clk 0:01:27]}  b5 {[%clk 0:01:44]} 40. axb5 {[%clk 0:01:27]}  axb5 {[%clk 0:01:45]} 41. g5 {[%clk 0:01:25]}  Bh8 {[%clk 0:01:45]} 42. g6+ {[%clk 0:01:24]}  Ke7 {[%clk 0:01:45]} 43. Kg5 {[%clk 0:01:25]}  Bg7 {[%clk 0:01:44]} 44. Kf5 {[%clk 0:01:25]}  Kd6 {[%clk 0:01:43]} 45. Kg5 {[%clk 0:01:25]}  Ke6 {[%clk 0:01:43]} 0-1


[Site "https://www.chess.com"]

[Event "Titled Tuesday Blitz November 08 Late 2022"]
[White "Indjic, Aleksandar"]
[Black "Bortnyk, Olexandr"]
[WhiteFideId "911925"]
[BlackFideId "14120828"]
[WhiteElo "2592"]
[BlackElo "2723"]
[Result "1-0"]
[Round "06"]
[TimeControl "180+1"]
[Date "2022.11.08"]
[WhiteClock "0:00:09"]
[BlackClock "0:00:09"]

1. d4 {[%clk 0:03:00]}  g6 {[%clk 0:02:57]} 2. Nc3 {[%clk 0:02:57]}  d5 {[%clk 0:02:56]} 3. Bf4 {[%clk 0:02:57]}  Nf6 {[%clk 0:02:54]} 4. e3 {[%clk 0:02:57]}  Bg7 {[%clk 0:02:54]} 5. h4 {[%clk 0:02:58]}  h5 {[%clk 0:02:52]} 6. Nf3 {[%clk 0:02:57]}  O-O {[%clk 0:02:52]} 7. Be2 {[%clk 0:02:56]}  Bg4 {[%clk 0:02:47]} 8. Ne5 {[%clk 0:02:56]}  Bxe2 {[%clk 0:02:45]} 9. Qxe2 {[%clk 0:02:56]}  c5 {[%clk 0:02:46]} 10. O-O-O {[%clk 0:02:53]}  Nc6 {[%clk 0:02:39]} 11. g4 {[%clk 0:02:37]}  Nxe5 {[%clk 0:02:35]} 12. dxe5 {[%clk 0:02:36]}  Nxg4 {[%clk 0:02:36]} 13. Rxd5 {[%clk 0:02:36]}  Qa5 {[%clk 0:02:36]} 14. f3 {[%clk 0:02:05]}  e6 {[%clk 0:02:35]} 15. fxg4 {[%clk 0:02:05]}  exd5 {[%clk 0:02:36]} 16. gxh5 {[%clk 0:01:59]}  d4 {[%clk 0:02:36]} 17. Nd5 {[%clk 0:01:55]}  Qxa2 {[%clk 0:02:29]} 18. Ne7+ {[%clk 0:01:55]}  Kh7 {[%clk 0:02:29]} 19. Qg4 {[%clk 0:01:43]}  Qa1+ {[%clk 0:01:52]} 20. Kd2 {[%clk 0:01:37]}  dxe3+ {[%clk 0:01:53]} 21. Kxe3 {[%clk 0:01:29]}  Qa6 {[%clk 0:01:54]} 22. Rg1 {[%clk 0:01:00]}  Rae8 {[%clk 0:01:43]} 23. hxg6+ {[%clk 0:00:45]}  fxg6 {[%clk 0:01:44]} 24. Nxg6 {[%clk 0:00:39]}  Rf7 {[%clk 0:01:44]} 25. Qh5+ {[%clk 0:00:23]}  Kg8 {[%clk 0:01:44]} 26. Bh6 {[%clk 0:00:21]}  Qc4 {[%clk 0:01:34]} 27. c3 {[%clk 0:00:11]}  Rd8 {[%clk 0:00:55]} 28. Nf4 {[%clk 0:00:11]}  Rd4 {[%clk 0:00:38]} 29. Rxg7+ {[%clk 0:00:09]}  Rxg7 {[%clk 0:00:38]} 30. Qe8+ {[%clk 0:00:07]}  Kh7 {[%clk 0:00:38]} 31. Bxg7 {[%clk 0:00:07]}  Re4+ {[%clk 0:00:32]} 32. Kd2 {[%clk 0:00:08]}  Rxf4 {[%clk 0:00:31]} 33. Qh8+ {[%clk 0:00:07]}  Kg6 {[%clk 0:00:32]} 34. h5+ {[%clk 0:00:07]}  Kf5 {[%clk 0:00:30]} 35. Qh7+ {[%clk 0:00:07]}  Kg4 {[%clk 0:00:30]} 36. Qg6+ {[%clk 0:00:07]}  Kh3 {[%clk 0:00:31]} 37. Qd3+ {[%clk 0:00:06]}  Qxd3+ {[%clk 0:00:19]} 38. Kxd3 {[%clk 0:00:07]}  c4+ {[%clk 0:00:18]} 39. Ke3 {[%clk 0:00:07]}  Kg4 {[%clk 0:00:17]} 40. h6 {[%clk 0:00:07]}  Rf3+ {[%clk 0:00:16]} 41. Ke4 {[%clk 0:00:08]}  Rh3 {[%clk 0:00:16]} 42. e6 {[%clk 0:00:08]}  Rh1 {[%clk 0:00:14]} 43. Ke5 {[%clk 0:00:09]}  Kg5 {[%clk 0:00:15]} 44. e7 {[%clk 0:00:08]}  Re1+ {[%clk 0:00:15]} 45. Kd6 {[%clk 0:00:09]}  Kg6 {[%clk 0:00:16]} 46. Be5 {[%clk 0:00:09]}  Kf7 {[%clk 0:00:15]} 47. h7 {[%clk 0:00:09]}  Rd1+ {[%clk 0:00:14]} 48. Bd4 {[%clk 0:00:10]}  Rh1 {[%clk 0:00:12]} 49. Kd7 {[%clk 0:00:10]}  Re1 {[%clk 0:00:08]} 50. h8=Q {[%clk 0:00:09]}  Rxe7+ {[%clk 0:00:09]} 51. Kd8 {[%clk 0:00:09]} 1-0


[Site "https://www.chess.com"]

[Event "Titled Tuesday Blitz November 08 Late 2022"]
[White "Jobava, Baadur"]
[Black "Mardov, Dimitar"]
[WhiteFideId "13601520"]
[BlackFideId "30919495"]
[WhiteElo "2582"]
[BlackElo "2332"]
[Result "1-0"]
[Round "06"]
[TimeControl "180+1"]
[Date "2022.11.08"]
[WhiteClock "0:00:12"]
[BlackClock "0:00:06"]

1. d4 {[%clk 0:03:00]}  Nf6 {[%clk 0:03:00]} 2. Nc3 {[%clk 0:03:01]}  d5 {[%clk 0:02:53]} 3. Bf4 {[%clk 0:03:01]}  e6 {[%clk 0:02:49]} 4. Nb5 {[%clk 0:03:01]}  Na6 {[%clk 0:02:49]} 5. e3 {[%clk 0:03:00]}  c6 {[%clk 0:02:49]} 6. Nc3 {[%clk 0:03:00]}  Nc7 {[%clk 0:02:47]} 7. Nf3 {[%clk 0:03:00]}  Bd6 {[%clk 0:02:47]} 8. Bd3 {[%clk 0:03:00]}  O-O {[%clk 0:02:47]} 9. O-O {[%clk 0:02:59]}  b6 {[%clk 0:02:42]} 10. Re1 {[%clk 0:02:57]}  Bb7 {[%clk 0:02:43]} 11. Ne5 {[%clk 0:02:51]}  c5 {[%clk 0:02:41]} 12. Qf3 {[%clk 0:02:50]}  c4 {[%clk 0:02:38]} 13. Bxc4 {[%clk 0:02:46]}  Rc8 {[%clk 0:02:28]} 14. Bd3 {[%clk 0:02:45]}  Nce8 {[%clk 0:02:23]} 15. Qh3 {[%clk 0:02:37]}  g6 {[%clk 0:02:17]} 16. Bh6 {[%clk 0:02:23]}  Ng7 {[%clk 0:02:17]} 17. Bg5 {[%clk 0:02:22]}  Be7 {[%clk 0:02:13]} 18. f4 {[%clk 0:02:20]}  Nf5 {[%clk 0:02:10]} 19. g4 {[%clk 0:02:16]}  Nd6 {[%clk 0:02:09]} 20. Bxf6 {[%clk 0:02:11]}  Bxf6 {[%clk 0:02:07]} 21. g5 {[%clk 0:02:12]}  Bg7 {[%clk 0:02:06]} 22. Qg3 {[%clk 0:01:55]}  a6 {[%clk 0:01:55]} 23. h4 {[%clk 0:01:53]}  b5 {[%clk 0:01:51]} 24. Re2 {[%clk 0:01:38]}  Nc4 {[%clk 0:01:33]} 25. Bxc4 {[%clk 0:01:10]}  dxc4 {[%clk 0:01:32]} 26. a3 {[%clk 0:01:04]}  a5 {[%clk 0:01:30]} 27. Rh2 {[%clk 0:00:56]}  b4 {[%clk 0:01:29]} 28. axb4 {[%clk 0:00:52]}  axb4 {[%clk 0:01:30]} 29. Ne2 {[%clk 0:00:48]}  h5 {[%clk 0:01:08]} 30. gxh6 {[%clk 0:00:43]}  Bxe5 {[%clk 0:01:08]} 31. fxe5 {[%clk 0:00:32]}  Kh7 {[%clk 0:01:09]} 32. Rf1 {[%clk 0:00:26]}  Qd5 {[%clk 0:00:58]} 33. h5 {[%clk 0:00:14]}  Qe4 {[%clk 0:00:38]} 34. Rf4 {[%clk 0:00:12]}  Qxc2 {[%clk 0:00:34]} 35. Rhf2 {[%clk 0:00:10]}  Qd1+ {[%clk 0:00:10]} 36. Rf1 {[%clk 0:00:11]}  Qxe2 {[%clk 0:00:09]} 37. Rxf7+ {[%clk 0:00:11]}  Rxf7 {[%clk 0:00:06]} 38. Rxf7+ {[%clk 0:00:12]}  Kh8 {[%clk 0:00:06]} 39. Rh7+ {[%clk 0:00:12]} 1-0


[Site "https://www.chess.com"]

[Event "Titled Tuesday Blitz November 08 Late 2022"]
[White "Kamsky, Gata"]
[Black "Bluebaum, Matthias"]
[WhiteFideId "2000024"]
[BlackFideId "24651516"]
[WhiteElo "2666"]
[BlackElo "2633"]
[Result "1-0"]
[Round "06"]
[TimeControl "180+1"]
[Date "2022.11.08"]
[WhiteClock "0:00:19"]
[BlackClock "0:00:02"]

1. d4 {[%clk 0:03:00]}  Nf6 {[%clk 0:02:59]} 2. Bf4 {[%clk 0:02:59]}  d5 {[%clk 0:03:00]} 3. e3 {[%clk 0:02:59]}  c5 {[%clk 0:03:01]} 4. c3 {[%clk 0:02:59]}  Nc6 {[%clk 0:03:01]} 5. Nd2 {[%clk 0:02:58]}  Bf5 {[%clk 0:03:01]} 6. Qb3 {[%clk 0:02:56]}  Qc8 {[%clk 0:03:00]} 7. dxc5 {[%clk 0:02:43]}  e5 {[%clk 0:02:48]} 8. Bg3 {[%clk 0:02:43]}  Be6 {[%clk 0:02:21]} 9. Ngf3 {[%clk 0:02:37]}  Nd7 {[%clk 0:02:22]} 10. Qd1 {[%clk 0:02:09]}  Bxc5 {[%clk 0:01:57]} 11. Bb5 {[%clk 0:02:07]}  f6 {[%clk 0:01:56]} 12. c4 {[%clk 0:02:03]}  dxc4 {[%clk 0:01:37]} 13. Bxc4 {[%clk 0:01:59]}  Nb6 {[%clk 0:01:37]} 14. Bd3 {[%clk 0:01:40]}  Be7 {[%clk 0:01:27]} 15. a3 {[%clk 0:01:38]}  O-O {[%clk 0:01:26]} 16. O-O {[%clk 0:01:38]}  Bf7 {[%clk 0:01:12]} 17. Qc2 {[%clk 0:01:36]}  g6 {[%clk 0:01:13]} 18. Rac1 {[%clk 0:01:34]}  Qe6 {[%clk 0:01:12]} 19. Ne4 {[%clk 0:01:25]}  Rfd8 {[%clk 0:01:11]} 20. Rfd1 {[%clk 0:01:22]}  Qb3 {[%clk 0:01:10]} 21. Qb1 {[%clk 0:01:04]}  Qa2 {[%clk 0:00:55]} 22. Qxa2 {[%clk 0:00:59]}  Bxa2 {[%clk 0:00:56]} 23. Bb5 {[%clk 0:00:54]}  Bb3 {[%clk 0:00:50]} 24. Rd2 {[%clk 0:00:44]}  Ba4 {[%clk 0:00:42]} 25. Be2 {[%clk 0:00:39]}  Bb3 {[%clk 0:00:31]} 26. h3 {[%clk 0:00:37]}  Kg7 {[%clk 0:00:31]} 27. Nc5 {[%clk 0:00:34]}  Bxc5 {[%clk 0:00:29]} 28. Rxc5 {[%clk 0:00:34]}  Be6 {[%clk 0:00:25]} 29. Bb5 {[%clk 0:00:31]}  Rxd2 {[%clk 0:00:23]} 30. Nxd2 {[%clk 0:00:30]}  Rd8 {[%clk 0:00:23]} 31. Ne4 {[%clk 0:00:29]}  Rd1+ {[%clk 0:00:15]} 32. Kh2 {[%clk 0:00:28]}  Bd7 {[%clk 0:00:12]} 33. b4 {[%clk 0:00:25]}  a6 {[%clk 0:00:11]} 34. Be2 {[%clk 0:00:23]}  Ra1 {[%clk 0:00:11]} 35. b5 {[%clk 0:00:23]}  axb5 {[%clk 0:00:10]} 36. Rxb5 {[%clk 0:00:24]}  Nc8 {[%clk 0:00:02]} 37. Rxb7 {[%clk 0:00:23]}  Rxa3 {[%clk 0:00:02]} 38. Rxd7+ {[%clk 0:00:23]}  N6e7 {[%clk 0:00:03]} 39. Bh4 {[%clk 0:00:20]}  g5 {[%clk 0:00:03]} 40. Nxg5 {[%clk 0:00:20]}  fxg5 {[%clk 0:00:04]} 41. Bxg5 {[%clk 0:00:20]}  Kf7 {[%clk 0:00:05]} 42. Bh5+ {[%clk 0:00:20]}  Ke6 {[%clk 0:00:05]} 43. Bg4+ {[%clk 0:00:20]}  Kf7 {[%clk 0:00:06]} 44. Rc7 {[%clk 0:00:20]}  Ra6 {[%clk 0:00:02]} 45. Bxc8 {[%clk 0:00:20]}  Kg6 {[%clk 0:00:02]} 46. Bxe7 {[%clk 0:00:19]} 1-0


[Site "https://www.chess.com"]

[Event "Titled Tuesday Blitz November 08 Late 2022"]
[White "Korchmar, Vasiliy"]
[Black "Estrada Nieto, Julian"]
[WhiteFideId "24131750"]
[BlackFideId "5101018"]
[WhiteElo "2370"]
[BlackElo "2221"]
[Result "1-0"]
[Round "06"]
[TimeControl "180+1"]
[Date "2022.11.09"]
[WhiteClock "0:01:26"]
[BlackClock "0:00:50"]

1. e4 {[%clk 0:03:00]}  e5 {[%clk 0:03:00]} 2. Nf3 {[%clk 0:03:01]}  Nc6 {[%clk 0:03:00]} 3. Bc4 {[%clk 0:03:01]}  Bc5 {[%clk 0:02:59]} 4. c3 {[%clk 0:03:01]}  Nf6 {[%clk 0:02:59]} 5. d3 {[%clk 0:03:01]}  d6 {[%clk 0:02:59]} 6. Bg5 {[%clk 0:03:01]}  h6 {[%clk 0:02:58]} 7. Bh4 {[%clk 0:03:02]}  a6 {[%clk 0:02:58]} 8. Nbd2 {[%clk 0:03:01]}  Ba7 {[%clk 0:02:52]} 9. O-O {[%clk 0:02:54]}  g5 {[%clk 0:02:51]} 10. Bg3 {[%clk 0:02:54]}  Bg4 {[%clk 0:02:45]} 11. Qb3 {[%clk 0:02:48]}  Qd7 {[%clk 0:02:39]} 12. Qxb7 {[%clk 0:02:43]}  O-O {[%clk 0:02:33]} 13. Qb3 {[%clk 0:02:35]}  Na5 {[%clk 0:02:32]} 14. Qc2 {[%clk 0:02:31]}  Nh5 {[%clk 0:02:28]} 15. Rfe1 {[%clk 0:02:21]}  Kh8 {[%clk 0:02:20]} 16. Kh1 {[%clk 0:01:43]}  f5 {[%clk 0:02:05]} 17. exf5 {[%clk 0:01:39]}  Rxf5 {[%clk 0:02:04]} 18. Bd5 {[%clk 0:01:34]}  c6 {[%clk 0:01:59]} 19. Be4 {[%clk 0:01:33]}  Rf6 {[%clk 0:01:35]} 20. Qa4 {[%clk 0:01:28]}  Nxg3+ {[%clk 0:01:28]} 21. fxg3 {[%clk 0:01:29]}  Bb6 {[%clk 0:01:16]} 22. b4 {[%clk 0:01:27]}  d5 {[%clk 0:01:09]} 23. Nxe5 {[%clk 0:01:27]}  Qd6 {[%clk 0:00:52]} 24. Nxg4 {[%clk 0:01:26]}  dxe4 {[%clk 0:00:50]} 25. Nxe4 {[%clk 0:01:26]} 1-0


[Site "https://www.chess.com"]

[Event "Titled Tuesday Blitz November 08 Late 2022"]
[White "Kosakowski, Jakub"]
[Black "Rodriguez Fontecha, Marcos"]
[WhiteFideId "1185080"]
[BlackFideId "2256576"]
[WhiteElo "2463"]
[BlackElo "2263"]
[Result "1-0"]
[Round "06"]
[TimeControl "180+1"]
[Date "2022.11.09"]
[WhiteClock "0:02:32"]
[BlackClock "0:02:06"]

1. d4 {[%clk 0:02:55]}  d5 {[%clk 0:02:59]} 2. c4 {[%clk 0:02:54]}  Nc6 {[%clk 0:02:59]} 3. Nf3 {[%clk 0:02:52]}  e5 {[%clk 0:02:59]} 4. dxe5 {[%clk 0:02:51]}  Bb4+ {[%clk 0:02:58]} 5. Bd2 {[%clk 0:02:47]}  dxc4 {[%clk 0:02:59]} 6. e3 {[%clk 0:02:47]}  Be6 {[%clk 0:02:59]} 7. a3 {[%clk 0:02:45]}  Bc5 {[%clk 0:02:58]} 8. Qc2 {[%clk 0:02:43]}  b5 {[%clk 0:02:51]} 9. b3 {[%clk 0:02:39]}  Nge7 {[%clk 0:02:15]} 10. bxc4 {[%clk 0:02:37]}  bxc4 {[%clk 0:02:16]} 11. Bxc4 {[%clk 0:02:35]}  Bxc4 {[%clk 0:02:12]} 12. Qxc4 {[%clk 0:02:36]}  Qd5 {[%clk 0:02:12]} 13. Qxd5 {[%clk 0:02:33]}  Nxd5 {[%clk 0:02:13]} 14. Ke2 {[%clk 0:02:33]}  O-O {[%clk 0:02:06]} 15. Rc1 {[%clk 0:02:32]} 1-0


[Site "https://www.chess.com"]